fUSD/lending_fUSD_20240416
["ID","MTS","AMOUNT","RATE_DAILY","PERIOD"]
[322770653,1713276224659,-500.0,0.00015538,2]
[322770654,1713276224678,-4166.60958127,0.0001563,2]
[322770655,1713276224698,-150.0,0.00015631,2]
[322770656,1713276224717,-150.0,0.00015631,2]
[322770657,1713276224737,-150.0,0.00015631,2]
[322770658,1713276224757,-975.80896245,0.00015631,2]
[322770659,1713276224778,-23900.0,0.00015632,2]
[322770660,1713276224798,-200.0,0.00015634,2]
[322770661,1713276224818,-157.88,0.00015749,2]
[322770662,1713276224839,-190.45,0.00015759,2]
[322770663,1713276224859,-663.68,0.00015759,2]
[322770664,1713276224879,-499.99,0.00015759,2]
[322770665,1713276224899,-455.21,0.00015771,2]
[322770666,1713276224920,-2991.84,0.00015777,2]
[322770667,1713276224941,-250.0,0.00015806,2]
[322770668,1713276224962,-157.88,0.00015828,2]
[322770669,1713276224983,-706.68302737,0.0001605,2]
[322770670,1713276225005,-485.36,0.00016123,2]
[322770671,1713276225025,-2213.35634076,0.00016143,2]
[322770672,1713276225046,-749.05627992,0.00016144,2]
[322770673,1713276225067,-1000.0,0.00016227,2]
[322770674,1713276225090,-999.99,0.00016227,2]
[322770675,1713276225109,-264.14,0.00016227,2]
[322770676,1713276225130,-1030.38846551,0.00016241,2]
[322770677,1713276225150,-8681.32721283,0.00016251,2]
[322770678,1713276225171,-168.31,0.00016423,2]
[322770679,1713276225191,-1222.95023345,0.00016796,2]
[322770680,1713276225211,-2500.0,0.00016797,2]
[322770681,1713276225230,-244.14377054,0.00016895,2]
[322770682,1713276225250,-531.41244433,0.00016895,2]
[322770683,1713276225270,-302.0,0.00016895,2]
[322770684,1713276225290,-39974.5807,0.00016897,2]
[322770685,1713276225311,-41406.3474,0.00016897,2]
[322770686,1713276225334,-765.4445,0.00016897,2]
[322770687,1713276225355,-80534.0978,0.00016897,2]
[322770688,1713276225375,-3600.3487,0.00016897,2]
[322770689,1713276225397,-179.66021463,0.00016897,2]
[322770690,1713276225415,-5777.7994,0.00016898,2]
[322770691,1713276225435,-473.68,0.000169,2]
[322770692,1713276225454,-533.87,0.000169,2]
[322770693,1713276225474,-219.53,0.00016986,2]
[322770694,1713276225493,-204.99865097,0.00016986,2]
[322770695,1713276225513,-219.53,0.00016987,2]
[322770696,1713276225532,-219.53,0.00016987,2]
[322770697,1713276225551,-219.53,0.00016987,2]
[322770698,1713276225574,-219.53,0.00016987,2]
[322770699,1713276225595,-219.53,0.00016987,2]
[322770700,1713276225614,-219.53,0.00016987,2]
[322770701,1713276225633,-219.53,0.00016987,2]
[322770702,1713276225652,-219.53,0.00016987,2]
[322770703,1713276225672,-1027.34,0.00016994,2]
[322770704,1713276225691,-500.0,0.00016994,2]
[322770705,1713276225711,-500.0,0.00016994,2]
[322770706,1713276225730,-831.23,0.00016994,2]
[322770707,1713276225750,-500.0,0.00016994,2]
[322770708,1713276225769,-500.0,0.00016994,2]
[322770709,1713276225788,-500.0,0.00016994,2]
[322770710,1713276225808,-500.0,0.00016994,2]
[322770711,1713276226011,-500.0,0.00016994,2]
[322770712,1713276226090,-582.39454772,0.00016994,2]
[322770713,1713276226110,-500.0,0.00016994,2]
[322770714,1713276226129,-500.0,0.00016994,2]
[322770715,1713276226148,-500.0,0.00016994,2]
[322770716,1713276226168,-500.0,0.00016994,2]
[322770717,1713276226188,-500.0,0.00016994,2]
[322770718,1713276226207,-500.0,0.00016994,2]
[322770719,1713276226227,-500.0,0.00016994,2]
[322770720,1713276226247,-890.07,0.00016994,2]
[322770721,1713276226268,-500.0,0.00016994,2]
[322770722,1713276226288,-330.98105064,0.00016994,2]
[322770723,1713276226311,-500.0,0.00016994,2]
[322770724,1713276226337,-500.0,0.00016994,2]
[322770725,1713276226358,-605.6,0.00016994,2]
[322770726,1713276226377,-500.0,0.00016994,2]
[322770727,1713276226400,-500.0,0.00016994,2]
[322770728,1713276226420,-770.42,0.00016994,2]
[322770729,1713276226441,-500.0,0.00016994,2]
[322770730,1713276226462,-531.45,0.00016994,2]
[322770731,1713276226483,-500.0,0.00016994,2]
[322770732,1713276226503,-729.38,0.00016994,2]
[322770733,1713276226524,-497.4,0.00016994,2]
[322770734,1713276226548,-500.0,0.00016994,2]
[322770735,1713276226570,-511.38,0.00016994,2]
[322770736,1713276226589,-500.0,0.00016994,2]
[322770737,1713276226609,-500.0,0.00016994,2]
[322770738,1713276226631,-500.0,0.00016994,2]
[322770739,1713276226651,-2016.29,0.00016994,2]
[322770740,1713276226672,-500.0,0.00016994,2]
[322770741,1713276226693,-2176.46,0.00016994,2]
[322770742,1713276226712,-500.0,0.00016994,2]
[322770743,1713276226733,-779.74,0.00016994,2]
[322770744,1713276226754,-1229.85,0.00016994,2]
[322770745,1713276226774,-500.0,0.00016994,2]
[322770746,1713276226794,-500.0,0.00016994,2]
[322770747,1713276226813,-899.29,0.00016994,2]
[322770748,1713276226834,-628.77,0.00016994,2]
[322770749,1713276226855,-559.53,0.00016994,2]
[322770750,1713276226875,-550.09,0.00016994,2]
[322770751,1713276226895,-675.19,0.00016994,2]
[322770752,1713276226915,-500.0,0.00016994,2]
[322770753,1713276226935,-888.7,0.00016994,2]
[322770754,1713276226956,-518.1,0.00016994,2]
[322770755,1713276226976,-500.0,0.00016994,2]
[322770756,1713276226995,-3112.73,0.00016994,2]
[322770757,1713276227015,-763.69,0.00016994,2]
[322770758,1713276227035,-500.0,0.00016994,2]
[322770759,1713276227055,-592.7,0.00016994,2]
[322770760,1713276227075,-500.0,0.00016994,2]
[322770761,1713276227095,-5116.91,0.00016994,2]
[322770762,1713276227116,-1798.12,0.00016994,2]
[322770763,1713276227135,-500.0,0.00016994,2]
[322770764,1713276227155,-500.0,0.00016994,2]
[322770765,1713276227176,-500.0,0.00016994,2]
[322770766,1713276227196,-500.0,0.00016994,2]
[322770767,1713276227216,-781.29,0.00016994,2]
[322770768,1713276227235,-500.0,0.00016994,2]
[322770769,1713276227255,-1049.87,0.00016994,2]
[322770770,1713276227275,-569.8,0.00016994,2]
[322770771,1713276227296,-1083.84,0.00016994,2]
[322770772,1713276227319,-500.0,0.00016994,2]
[322770773,1713276227339,-307.34,0.00016994,2]
[322770774,1713276227358,-500.0,0.00016994,2]
[322770775,1713276227378,-452.36560201,0.00016994,2]
[322770776,1713276227399,-500.0,0.00016994,2]
[322770777,1713276227418,-500.0,0.00016994,2]
[322770778,1713276227437,-500.0,0.00016994,2]
[322770779,1713276227457,-500.0,0.00016994,2]
[322770780,1713276227477,-500.0,0.00016994,2]
[322770781,1713276227498,-500.0,0.00016994,2]
[322770782,1713276227518,-774.77,0.00016994,2]
[322770783,1713276227538,-724.08,0.00016994,2]
[322770784,1713276227557,-500.0,0.00016994,2]
[322770785,1713276227580,-2035.1,0.00016994,2]
[322770786,1713276227600,-516.83,0.00016994,2]
[322770787,1713276227619,-500.0,0.00016994,2]
[322770788,1713276227638,-584.44,0.00016994,2]
[322770789,1713276227658,-667.7,0.00016994,2]
[322770790,1713276227677,-617.68198083,0.00016994,2]
[322770791,1713276227697,-1607.9,0.00016994,2]
[322770792,1713276227718,-500.0,0.00016994,2]
[322770793,1713276227740,-500.0,0.00016994,2]
[322770794,1713276227761,-509.42959143,0.00016994,2]
[322770795,1713276227782,-500.0,0.00016994,2]
[322770796,1713276227802,-500.0,0.00016994,2]
[322770797,1713276227823,-508.92548277,0.00016994,2]
[322770798,1713276227845,-514.98,0.00016994,2]
[322770799,1713276227865,-500.0,0.00016994,2]
[322770800,1713276227885,-500.0,0.00016994,2]
[322770801,1713276227905,-511.82421613,0.00016994,2]
[322770802,1713276227924,-244.70665067,0.00016994,2]
[322770803,1713276227943,-513.69731623,0.00016994,2]
[322770804,1713276227962,-158.10390941,0.00016994,2]
[322770805,1713276227983,-1771.8,0.00016994,2]
[322770806,1713276228003,-505.23244727,0.00016994,2]
[322770807,1713276228023,-2308.23,0.00016994,2]
[322770808,1713276228043,-500.0,0.00016994,2]
[322770809,1713276228062,-573.52,0.00016994,2]
[322770810,1713276228083,-503.85851001,0.00016994,2]
[322770811,1713276228102,-640.94,0.00016994,2]
[322770812,1713276228121,-519.78147296,0.00016994,2]
[322770813,1713276228144,-500.0,0.00016994,2]
[322770814,1713276228165,-2524.24,0.00016994,2]
[322770815,1713276228185,-500.0,0.00016994,2]
[322770816,1713276228209,-49775.61,0.00016994,2]
[322770817,1713276228229,-419.11532899,0.00016994,2]
[322770818,1713276228249,-500.0,0.00016994,2]
[322770819,1713276228268,-476.28117249,0.00016994,2]
[322770820,1713276228290,-431.58773491,0.00016994,2]
[322770821,1713276228310,-1154.69,0.00016994,2]
[322770822,1713276228331,-476.86757341,0.00016994,2]
[322770823,1713276228351,-6848.85,0.00016994,2]
[322770824,1713276228372,-500.0,0.00016994,2]
[322770825,1713276228393,-500.0,0.00016994,2]
[322770826,1713276228417,-514.57327166,0.00016994,2]
[322770827,1713276228439,-500.0,0.00016994,2]
[322770828,1713276228459,-601.13310554,0.00016994,2]
[322770829,1713276228479,-500.0,0.00016994,2]
[322770830,1713276228500,-230.62,0.00016994,2]
[322770831,1713276228519,-500.0,0.00016994,2]
[322770832,1713276228540,-505.33747239,0.00016994,2]
[322770833,1713276228564,-518.01645785,0.00016994,2]
[322770834,1713276228586,-4845.51,0.00016994,2]
[322770835,1713276228606,-4247.73,0.00016994,2]
[322770836,1713276228626,-1806.37,0.00016994,2]
[322770837,1713276228646,-500.0,0.00016994,2]
[322770838,1713276228667,-500.0,0.00016994,2]
[322770839,1713276228688,-4546.63,0.00016994,2]
[322770840,1713276228708,-571.14793425,0.00016994,2]
[322770841,1713276228728,-500.0,0.00016994,2]
[322770842,1713276228748,-174.99251196,0.00016994,2]
[322770843,1713276228768,-658.12,0.00016994,2]
[322770844,1713276228789,-264.02363946,0.00016994,2]
[322770845,1713276228809,-500.0,0.00016994,2]
[322770846,1713276228830,-5312.91,0.00016994,2]
[322770847,1713276228850,-500.0,0.00016994,2]
[322770848,1713276228871,-500.0,0.00016994,2]
[322770849,1713276228892,-200.73783456,0.00016994,2]
[322770850,1713276228912,-500.0,0.00016994,2]
[322770851,1713276228933,-500.0,0.00016994,2]
[322770852,1713276228953,-251.27,0.00016994,2]
[322770853,1713276228974,-500.0,0.00016994,2]
[322770854,1713276228994,-159.5006521,0.00016994,2]
[322770855,1713276229014,-500.0,0.00016994,2]
[322770856,1713276229035,-220.66660495,0.00016994,2]
[322770857,1713276229055,-500.0,0.00016994,2]
[322770858,1713276229080,-504.9052591,0.00016994,2]
[322770859,1713276229101,-1205.4,0.00016994,2]
[322770860,1713276229121,-396.28152062,0.00016994,2]
[322770861,1713276229142,-716.44,0.00016994,2]
[322770862,1713276229162,-500.0,0.00016994,2]
[322770863,1713276229182,-725.92722762,0.00016995,2]
[322770864,1713276229203,-786.17678241,0.00016995,2]
[322770865,1713276229224,-5539.30222896,0.00016995,2]
[322770866,1713276229244,-4982.95,0.00016995,2]
[322770867,1713276229265,-1862.38,0.00016995,2]
[322770868,1713276229286,-500.0,0.00016995,2]
[322770869,1713276229307,-3827.41,0.00016995,2]
[322770870,1713276229333,-1469.79,0.00016995,2]
[322770871,1713276229354,-994.66,0.00016995,2]
[322770872,1713276229374,-718.5,0.00016995,2]
[322770873,1713276229398,-4794.37,0.00016995,2]
[322770874,1713276229419,-500.0,0.00016995,2]
[322770875,1713276229441,-579.49,0.00016995,2]
[322770876,1713276229463,-500.0,0.00016995,2]
[322770877,1713276229483,-500.0,0.00016995,2]
[322770878,1713276229503,-500.0,0.00016995,2]
[322770879,1713276229525,-500.0,0.00016995,2]
[322770880,1713276229548,-500.0,0.00016995,2]
[322770881,1713276229571,-500.0,0.00016995,2]
[322770882,1713276229595,-828.8,0.00016995,2]
[322770883,1713276229614,-2700.94,0.00016995,2]
[322770884,1713276229634,-2264.92,0.00016995,2]
[322770885,1713276229654,-3897.21,0.00016995,2]
[322770886,1713276229674,-441.716703,0.00016995,2]
[322770887,1713276229694,-441.716703,0.00016995,2]
[322770888,1713276229713,-11782.24,0.00016995,2]
[322770889,1713276229733,-872.48,0.00016995,2]
[322770890,1713276229752,-206.603431,0.00016995,2]
[322770891,1713276229772,-400.760157,0.00016995,2]
[322770892,1713276229791,-400.760157,0.00016995,2]
[322770893,1713276230039,-187.612716,0.00016995,2]
[322770894,1713276230060,-500.0,0.00016995,2]
[322770895,1713276230084,-11563.9,0.00016995,2]
[322770896,1713276230104,-187.612716,0.00016995,2]
[322770897,1713276230126,-1101.2,0.00016995,2]
[322770898,1713276230147,-1517.13,0.00016995,2]
[322770899,1713276230168,-3679.64,0.00016995,2]
[322770900,1713276230190,-500.0,0.00016995,2]
[322770901,1713276230212,-553.30338799,0.00016995,2]
[322770902,1713276230234,-500.0,0.00016995,2]
[322770903,1713276230255,-500.0,0.00016995,2]
[322770904,1713276230275,-500.0,0.00016995,2]
[322770905,1713276230295,-500.0,0.00016995,2]
[322770906,1713276230317,-500.0,0.00016995,2]
[322770907,1713276230347,-500.0,0.00016995,2]
[322770908,1713276230368,-2621.59,0.00016995,2]
[322770909,1713276230389,-500.0,0.00016995,2]
[322770910,1713276230411,-500.0,0.00016995,2]
[322770911,1713276230431,-500.0,0.00016995,2]
[322770912,1713276230451,-1585.35,0.00016995,2]
[322770913,1713276230471,-500.0,0.00016995,2]
[322770914,1713276230491,-239.8411658,0.00016996,2]
[322770915,1713276230512,-410.54433685,0.00016996,2]
[322770916,1713276230531,-204.87925496,0.00016996,2]
[322770917,1713276230554,-4317.2879473,0.00016996,2]
[322770918,1713276230576,-419.22939929,0.00016996,2]
[322770919,1713276230596,-380.11831501,0.00016996,2]
[322770920,1713276230615,-1127.03271038,0.00016996,2]
[322770921,1713276230636,-155.0,0.00016996,2]
[322770922,1713276230655,-705.57830306,0.00016996,2]
[322770923,1713276230674,-175.464013,0.00016996,2]
[322770924,1713276230694,-175.464013,0.00016996,2]
[322770925,1713276230714,-2326.212202,0.00016996,2]
[322770926,1713276230734,-2326.212202,0.00016996,2]
[322770927,1713276230754,-151.0,0.00016996,2]
[322770928,1713276230774,-151.0,0.00016996,2]
[322770929,1713276230794,-151.0,0.00016996,2]
[322770930,1713276230814,-4982.95,0.00016996,2]
[322770931,1713276230835,-4982.95,0.00016996,2]
[322770932,1713276230856,-645.81842585,0.00016996,2]
[322770933,1713276230876,-500.0,0.00016996,2]
[322770934,1713276230897,-1281.41,0.00016996,2]
[322770935,1713276230919,-1862.38,0.00016996,2]
[322770936,1713276230940,-1862.38,0.00016996,2]
[322770937,1713276230960,-500.0,0.00016996,2]
[322770938,1713276230980,-189.91588574,0.00016996,2]
[322770939,1713276231001,-501.2127752,0.00016996,2]
[322770940,1713276231024,-1027.34,0.00016996,2]
[322770941,1713276231045,-1027.34,0.00016996,2]
[322770942,1713276231065,-3827.41,0.00016996,2]
[322770943,1713276231088,-1469.79,0.00016996,2]
[322770944,1713276231108,-1027.34,0.00016996,2]
[322770945,1713276231128,-3827.41,0.00016996,2]
[322770946,1713276231147,-1469.79,0.00016996,2]
[322770947,1713276231168,-1027.34,0.00016996,2]
[322770948,1713276231188,-250.53640574,0.00016996,2]
[322770949,1713276231208,-500.0,0.00016996,2]
[322770950,1713276231228,-500.0,0.00016996,2]
[322770951,1713276231248,-500.0,0.00016996,2]
[322770952,1713276231268,-500.0,0.00016996,2]
[322770953,1713276231288,-500.0,0.00016996,2]
[322770954,1713276231309,-572.49190439,0.00016996,2]
[322770955,1713276231332,-500.0,0.00016996,2]
[322770956,1713276231352,-500.0,0.00016996,2]
[322770957,1713276231374,-500.0,0.00016996,2]
[322770958,1713276231398,-994.66,0.00016996,2]
[322770959,1713276231418,-831.23,0.00016996,2]
[322770960,1713276231439,-994.66,0.00016996,2]
[322770961,1713276231459,-831.23,0.00016996,2]
[322770962,1713276231480,-831.23,0.00016996,2]
[322770963,1713276231500,-831.23,0.00016996,2]
[322770964,1713276231520,-500.0,0.00016996,2]
[322770965,1713276231540,-500.0,0.00016996,2]
[322770966,1713276231560,-500.0,0.00016996,2]
[322770967,1713276231584,-500.0,0.00016996,2]
[322770968,1713276231603,-500.0,0.00016996,2]
[322770969,1713276231624,-214.77053809,0.00016996,2]
[322770970,1713276231644,-500.0,0.00016996,2]
[322770971,1713276231664,-500.0,0.00016996,2]
[322770972,1713276231686,-500.0,0.00016996,2]
[322770973,1713276231708,-500.0,0.00016996,2]
[322770974,1713276231729,-500.0,0.00016996,2]
[322770975,1713276231750,-500.0,0.00016996,2]
[322770976,1713276231771,-500.0,0.00016996,2]
[322770977,1713276231792,-832.73529,0.00016996,2]
[322770978,1713276231814,-500.0,0.00016996,2]
[322770979,1713276231838,-832.73529,0.00016996,2]
[322770980,1713276231870,-477.04,0.00016996,2]
[322770981,1713276231890,-500.0,0.00016996,2]
[322770982,1713276231910,-832.73529,0.00016996,2]
[322770983,1713276231930,-341.46147684,0.00016996,2]
[322770984,1713276231951,-500.0,0.00016996,2]
[322770985,1713276231971,-500.0,0.00016996,2]
[322770986,1713276231991,-500.0,0.00016996,2]
[322770987,1713276232011,-500.0,0.00016996,2]
[322770988,1713276232030,-500.0,0.00016996,2]
[322770989,1713276232051,-500.0,0.00016996,2]
[322770990,1713276232071,-500.0,0.00016996,2]
[322770991,1713276232094,-500.0,0.00016996,2]
[322770992,1713276232113,-500.0,0.00016996,2]
[322770993,1713276232133,-718.5,0.00016996,2]
[322770994,1713276232153,-500.0,0.00016996,2]
[322770995,1713276232173,-832.73529,0.00016996,2]
[322770996,1713276232194,-718.5,0.00016996,2]
[322770997,1713276232214,-500.0,0.00016996,2]
[322770998,1713276232235,-832.73529,0.00016996,2]
[322770999,1713276232255,-832.73529,0.00016996,2]
[322771000,1713276232275,-500.0,0.00016996,2]
[322771001,1713276232297,-890.07,0.00016996,2]
[322771002,1713276232319,-429.36544634,0.00016996,2]
[322771003,1713276232342,-500.0,0.00016996,2]
[322771004,1713276232364,-500.0,0.00016996,2]
[322771005,1713276232387,-500.0,0.00016996,2]
[322771006,1713276232408,-890.07,0.00016996,2]
[322771007,1713276232429,-500.0,0.00016996,2]
[322771008,1713276232450,-890.07,0.00016996,2]
[322771009,1713276232470,-500.0,0.00016996,2]
[322771010,1713276232492,-500.0,0.00016996,2]
[322771011,1713276232514,-890.07,0.00016996,2]
[322771012,1713276232535,-583.9660855,0.00016996,2]
[322771013,1713276232556,-500.0,0.00016996,2]
[322771014,1713276232579,-500.0,0.00016996,2]
[322771015,1713276232599,-500.0,0.00016996,2]
[322771016,1713276232620,-500.0,0.00016996,2]
[322771017,1713276232641,-500.0,0.00016996,2]
[322771018,1713276232662,-4794.37,0.00016996,2]
[322771019,1713276232683,-500.0,0.00016996,2]
[322771020,1713276232705,-4794.37,0.00016996,2]
[322771021,1713276232725,-500.0,0.00016996,2]
[322771022,1713276232746,-500.0,0.00016996,2]
[322771023,1713276232767,-605.6,0.00016996,2]
[322771024,1713276232787,-500.0,0.00016996,2]
[322771025,1713276232808,-605.6,0.00016996,2]
[322771026,1713276232830,-605.6,0.00016996,2]
[322771027,1713276232850,-500.0,0.00016996,2]
[322771028,1713276232870,-500.0,0.00016996,2]
[322771029,1713276232891,-770.42,0.00016996,2]
[322771030,1713276232912,-605.6,0.00016996,2]
[322771031,1713276232933,-500.0,0.00016996,2]
[322771032,1713276232954,-770.42,0.00016996,2]
[322771033,1713276232975,-500.0,0.00016996,2]
[322771034,1713276232996,-500.0,0.00016996,2]
[322771035,1713276233018,-500.0,0.00016996,2]
[322771036,1713276233039,-770.42,0.00016996,2]
[322771037,1713276233060,-770.42,0.00016996,2]
[322771038,1713276233081,-500.0,0.00016996,2]
[322771039,1713276233101,-500.0,0.00016996,2]
[322771040,1713276233122,-500.0,0.00016996,2]
[322771041,1713276233142,-500.0,0.00016996,2]
[322771042,1713276233163,-154.905913,0.00016996,2]
[322771043,1713276233184,-531.45,0.00016996,2]
[322771044,1713276233204,-531.45,0.00016996,2]
[322771045,1713276233225,-531.45,0.00016996,2]
[322771046,1713276233246,-500.0,0.00016996,2]
[322771047,1713276233267,-500.0,0.00016996,2]
[322771048,1713276233289,-531.45,0.00016996,2]
[322771049,1713276233313,-500.0,0.00016996,2]
[322771050,1713276233337,-500.0,0.00016996,2]
[322771051,1713276233358,-500.0,0.00016996,2]
[322771052,1713276233381,-500.0,0.00016996,2]
[322771053,1713276233403,-729.38,0.00016996,2]
[322771054,1713276233430,-500.0,0.00016996,2]
[322771055,1713276233452,-500.0,0.00016996,2]
[322771056,1713276233474,-729.38,0.00016996,2]
[322771057,1713276233495,-729.38,0.00016996,2]
[322771058,1713276233515,-729.38,0.00016996,2]
[322771059,1713276233535,-151.0,0.00016996,2]
[322771060,1713276233555,-151.0,0.00016996,2]
[322771061,1713276233576,-151.0,0.00016996,2]
[322771062,1713276233596,-151.0,0.00016996,2]
[322771063,1713276233617,-500.0,0.00016996,2]
[322771064,1713276233637,-511.38,0.00016996,2]
[322771065,1713276233657,-500.0,0.00016996,2]
[322771066,1713276233678,-511.38,0.00016996,2]
[322771067,1713276233700,-500.0,0.00016996,2]
[322771068,1713276233933,-500.0,0.00016996,2]
[322771069,1713276233956,-500.0,0.00016996,2]
[322771070,1713276233977,-511.38,0.00016996,2]
[322771071,1713276233997,-500.0,0.00016996,2]
[322771072,1713276234017,-511.38,0.00016996,2]
[322771073,1713276234038,-500.0,0.00016996,2]
[322771074,1713276234059,-500.0,0.00016996,2]
[322771075,1713276234081,-500.0,0.00016996,2]
[322771076,1713276234102,-151.0,0.00016996,2]
[322771077,1713276234122,-417.91,0.00016996,2]
[322771078,1713276234143,-151.0,0.00016996,2]
[322771079,1713276234163,-252.808225,0.00016996,2]
[322771080,1713276234183,-338.0719,0.00016996,2]
[322771081,1713276234204,-338.0719,0.00016996,2]
[322771082,1713276234224,-338.0719,0.00016996,2]
[322771083,1713276234245,-338.0719,0.00016996,2]
[322771084,1713276234265,-9793.69,0.00016996,2]
[322771085,1713276234286,-500.0,0.00016996,2]
[322771086,1713276234309,-500.0,0.00016996,2]
[322771087,1713276234330,-500.0,0.00016996,2]
[322771088,1713276234350,-2016.29,0.00016996,2]
[322771089,1713276234370,-500.0,0.00016996,2]
[322771090,1713276234391,-2016.29,0.00016996,2]
[322771091,1713276234412,-579.49,0.00016996,2]
[322771092,1713276234432,-2016.29,0.00016996,2]
[322771093,1713276234452,-579.49,0.00016996,2]
[322771094,1713276234474,-335.62745669,0.00016996,2]
[322771095,1713276234494,-2016.29,0.00016996,2]
[322771096,1713276234514,-2176.46,0.00016996,2]
[322771097,1713276234533,-338.0719,0.00016996,2]
[322771098,1713276234556,-2176.46,0.00016996,2]
[322771099,1713276234579,-338.0719,0.00016996,2]
[322771100,1713276234599,-2176.46,0.00016996,2]
[322771101,1713276234619,-338.0719,0.00016996,2]
[322771102,1713276234639,-2176.46,0.00016996,2]
[322771103,1713276234659,-338.0719,0.00016996,2]
[322771104,1713276234678,-184.561135,0.00016996,2]
[322771105,1713276234699,-500.0,0.00016996,2]
[322771106,1713276234719,-151.0,0.00016996,2]
[322771107,1713276234740,-500.0,0.00016996,2]
[322771108,1713276234760,-779.74,0.00016996,2]
[322771109,1713276234781,-151.0,0.00016996,2]
[322771110,1713276234802,-500.0,0.00016996,2]
[322771111,1713276234823,-779.74,0.00016996,2]
[322771112,1713276234847,-151.0,0.00016996,2]
[322771113,1713276234868,-311.89710201,0.00016996,2]
[322771114,1713276234889,-779.74,0.00016996,2]
[322771115,1713276234910,-779.74,0.00016996,2]
[322771116,1713276234932,-151.0,0.00016996,2]
[322771117,1713276234954,-1229.85,0.00016996,2]
[322771118,1713276234975,-1229.85,0.00016996,2]
[322771119,1713276234995,-1229.85,0.00016996,2]
[322771120,1713276235016,-1229.85,0.00016996,2]
[322771121,1713276235039,-500.0,0.00016996,2]
[322771122,1713276235059,-500.0,0.00016996,2]
[322771123,1713276235081,-160.07446,0.00016996,2]
[322771124,1713276235101,-500.0,0.00016996,2]
[322771125,1713276235120,-500.0,0.00016996,2]
[322771126,1713276235140,-500.0,0.00016996,2]
[322771127,1713276235159,-500.0,0.00016996,2]
[322771128,1713276235179,-581.97111968,0.00016996,2]
[322771129,1713276235200,-4242.36,0.00016996,2]
[322771130,1713276235220,-899.29,0.00016996,2]
[322771131,1713276235240,-500.0,0.00016996,2]
[322771132,1713276235259,-899.29,0.00016996,2]
[322771133,1713276235279,-500.0,0.00016996,2]
[322771134,1713276235299,-899.29,0.00016996,2]
[322771135,1713276235321,-899.29,0.00016996,2]
[322771136,1713276235344,-628.77,0.00016996,2]
[322771137,1713276235364,-628.77,0.00016996,2]
[322771138,1713276235384,-628.77,0.00016996,2]
[322771139,1713276235407,-559.53,0.00016996,2]
[322771140,1713276235427,-628.77,0.00016996,2]
[322771141,1713276235447,-559.53,0.00016996,2]
[322771142,1713276235467,-559.53,0.00016996,2]
[322771143,1713276235488,-559.53,0.00016996,2]
[322771144,1713276235509,-500.0,0.00016996,2]
[322771145,1713276235528,-213.04,0.00016996,2]
[322771146,1713276235548,-550.09,0.00016996,2]
[322771147,1713276235569,-176.98646,0.00016996,2]
[322771148,1713276235591,-550.09,0.00016996,2]
[322771149,1713276235612,-151.0,0.00016996,2]
[322771150,1713276235632,-176.98646,0.00016996,2]
[322771151,1713276235652,-550.09,0.00016996,2]
[322771152,1713276235671,-151.0,0.00016996,2]